[Event "Titled Tuesday Blitz December 13 Early 2022"]
[White "Firouzja, Alireza"]
[Black "Estrada Nieto, Julian"]
[WhiteFideId "12573981"]
[BlackFideId "5101018"]
[WhiteElo "2904"]
[BlackElo "2195"]
[Result "1-0"]
[Round "01"]
[TimeControl "180+1"]
[Date "2022.12.13"]
[WhiteClock "0:00:56"]
[BlackClock "0:00:06"]

1. d4 {[%clk 0:02:58]}  d5 {[%clk 0:03:00]} 2. c3 {[%clk 0:02:58]}  Nf6 {[%clk 0:02:57]} 3. Nf3 {[%clk 0:02:59]}  c6 {[%clk 0:02:55]} 4. Bf4 {[%clk 0:02:56]}  Bf5 {[%clk 0:02:51]} 5. Nbd2 {[%clk 0:02:55]}  Nbd7 {[%clk 0:02:48]} 6. Nh4 {[%clk 0:02:50]}  Bg6 {[%clk 0:02:29]} 7. e3 {[%clk 0:02:48]}  e6 {[%clk 0:02:28]} 8. Nxg6 {[%clk 0:02:47]}  hxg6 {[%clk 0:02:28]} 9. h3 {[%clk 0:02:48]}  Be7 {[%clk 0:02:18]} 10. Bd3 {[%clk 0:02:45]}  O-O {[%clk 0:02:12]} 11. O-O {[%clk 0:02:45]}  c5 {[%clk 0:02:09]} 12. Nf3 {[%clk 0:02:36]}  c4 {[%clk 0:01:57]} 13. Bc2 {[%clk 0:02:35]}  b5 {[%clk 0:01:56]} 14. Qe2 {[%clk 0:02:31]}  Qb6 {[%clk 0:01:51]} 15. Bg5 {[%clk 0:02:28]}  Rfe8 {[%clk 0:01:50]} 16. h4 {[%clk 0:02:27]}  b4 {[%clk 0:01:47]} 17. Ba4 {[%clk 0:02:25]}  Red8 {[%clk 0:01:34]} 18. g3 {[%clk 0:01:50]}  bxc3 {[%clk 0:01:10]} 19. bxc3 {[%clk 0:01:47]}  Qa5 {[%clk 0:01:10]} 20. Qc2 {[%clk 0:01:47]}  Nb6 {[%clk 0:01:02]} 21. Bc6 {[%clk 0:01:39]}  Rac8 {[%clk 0:01:02]} 22. Ne5 {[%clk 0:01:40]}  Rd6 {[%clk 0:00:47]} 23. e4 {[%clk 0:01:21]}  Rcxc6 {[%clk 0:00:42]} 24. Nxc6 {[%clk 0:01:21]}  Rxc6 {[%clk 0:00:42]} 25. e5 {[%clk 0:01:22]}  Ne4 {[%clk 0:00:38]} 26. Bxe7 {[%clk 0:01:21]}  Qxc3 {[%clk 0:00:37]} 27. Qxc3 {[%clk 0:01:03]}  Nxc3 {[%clk 0:00:37]} 28. Kg2 {[%clk 0:01:03]}  Nba4 {[%clk 0:00:20]} 29. Rh1 {[%clk 0:00:56]}  Rb6 {[%clk 0:00:19]} 30. h5 {[%clk 0:00:56]}  gxh5 {[%clk 0:00:15]} 31. Rxh5 {[%clk 0:00:57]}  f6 {[%clk 0:00:06]} 32. exf6 {[%clk 0:00:56]}  Kf7 {[%clk 0:00:07]} 33. Rh7 {[%clk 0:00:56]}  Kg6 {[%clk 0:00:06]} 34. Rxg7+ {[%clk 0:00:56]}  Kf5 {[%clk 0:00:07]} 35. f7 {[%clk 0:00:57]}  Rb8 {[%clk 0:00:06]} 36. Rg8 {[%clk 0:00:56]} 1-0


[Site "https://www.chess.com"]

[Event "Titled Tuesday Blitz December 13 Early 2022"]
[White "Fromm, Marius"]
[Black "Prieto Aranguren, Alain"]
[WhiteFideId "12993190"]
[BlackFideId "2268906"]
[WhiteElo "2325"]
[BlackElo "2209"]
[Result "1-0"]
[Round "01"]
[TimeControl "180+1"]
[Date "2022.12.14"]
[WhiteClock "0:00:30"]
[BlackClock "0:00:27"]

1. e4 {[%clk 0:02:59]}  c6 {[%clk 0:02:59]} 2. d4 {[%clk 0:02:59]}  d5 {[%clk 0:03:00]} 3. exd5 {[%clk 0:03:00]}  cxd5 {[%clk 0:02:59]} 4. Bd3 {[%clk 0:03:00]}  Nc6 {[%clk 0:02:59]} 5. c3 {[%clk 0:03:01]}  Qc7 {[%clk 0:02:59]} 6. h3 {[%clk 0:03:01]}  g6 {[%clk 0:02:58]} 7. Nf3 {[%clk 0:03:01]}  Bf5 {[%clk 0:02:57]} 8. Be2 {[%clk 0:03:01]}  Bg7 {[%clk 0:02:56]} 9. O-O {[%clk 0:03:01]}  Nf6 {[%clk 0:02:56]} 10. Be3 {[%clk 0:03:02]}  O-O {[%clk 0:02:56]} 11. Nbd2 {[%clk 0:03:02]}  Rac8 {[%clk 0:02:53]} 12. Re1 {[%clk 0:03:02]}  Rfe8 {[%clk 0:02:51]} 13. Bf1 {[%clk 0:03:03]}  Ne4 {[%clk 0:02:50]} 14. Rc1 {[%clk 0:03:02]}  Nxd2 {[%clk 0:02:49]} 15. Qxd2 {[%clk 0:03:03]}  Be4 {[%clk 0:02:44]} 16. Ng5 {[%clk 0:03:01]}  Bf5 {[%clk 0:02:34]} 17. Bf4 {[%clk 0:03:01]}  Qb6 {[%clk 0:02:30]} 18. Nf3 {[%clk 0:02:54]}  Be4 {[%clk 0:02:28]} 19. Ng5 {[%clk 0:02:52]}  Bf5 {[%clk 0:02:27]} 20. Be3 {[%clk 0:02:25]}  Na5 {[%clk 0:02:25]} 21. b3 {[%clk 0:02:22]}  Nc6 {[%clk 0:02:20]} 22. b4 {[%clk 0:02:20]}  a5 {[%clk 0:02:18]} 23. b5 {[%clk 0:02:14]}  Nb8 {[%clk 0:02:12]} 24. a4 {[%clk 0:02:10]}  Nd7 {[%clk 0:02:10]} 25. c4 {[%clk 0:02:06]}  Nf6 {[%clk 0:01:42]} 26. c5 {[%clk 0:02:03]}  Qd8 {[%clk 0:01:42]} 27. g4 {[%clk 0:01:54]}  Ne4 {[%clk 0:01:37]} 28. Nxe4 {[%clk 0:01:51]}  Bxe4 {[%clk 0:01:37]} 29. Bg2 {[%clk 0:01:37]}  Bxg2 {[%clk 0:01:35]} 30. Kxg2 {[%clk 0:01:37]}  e6 {[%clk 0:01:27]} 31. Bg5 {[%clk 0:01:32]}  Qc7 {[%clk 0:01:24]} 32. Bf4 {[%clk 0:01:31]}  Qd7 {[%clk 0:01:22]} 33. Be5 {[%clk 0:01:21]}  Bxe5 {[%clk 0:01:20]} 34. Rxe5 {[%clk 0:01:18]}  Qd8 {[%clk 0:01:19]} 35. Rce1 {[%clk 0:01:13]}  b6 {[%clk 0:01:14]} 36. c6 {[%clk 0:01:12]}  Qd6 {[%clk 0:01:14]} 37. f4 {[%clk 0:00:54]}  Ra8 {[%clk 0:01:04]} 38. f5 {[%clk 0:00:51]}  Qb4 {[%clk 0:01:04]} 39. Qh6 {[%clk 0:00:44]}  Rac8 {[%clk 0:00:42]} 40. R1e2 {[%clk 0:00:28]}  Qf8 {[%clk 0:00:34]} 41. Qxf8+ {[%clk 0:00:28]}  Kxf8 {[%clk 0:00:34]} 42. fxe6 {[%clk 0:00:27]}  fxe6 {[%clk 0:00:34]} 43. Rxe6 {[%clk 0:00:28]}  Rxe6 {[%clk 0:00:34]} 44. Rxe6 {[%clk 0:00:29]}  Kf7 {[%clk 0:00:34]} 45. Rd6 {[%clk 0:00:29]}  Ke7 {[%clk 0:00:33]} 46. Rxd5 {[%clk 0:00:29]}  Rf8 {[%clk 0:00:27]} 47. Rd7+ {[%clk 0:00:29]}  Ke6 {[%clk 0:00:27]} 48. d5+ {[%clk 0:00:29]}  Ke5 {[%clk 0:00:27]} 49. c7 {[%clk 0:00:30]} 1-0


[Site "https://www.chess.com"]

[Event "Titled Tuesday Blitz December 13 Early 2022"]
[White "Gil Alba, Hector Luis"]
[Black "Galchenko, Matvey"]
[WhiteFideId "3504670"]
[BlackFideId "24175480"]
[WhiteElo "2331"]
[BlackElo "2404"]
[Result "0-1"]
[Round "01"]
[TimeControl "180+1"]
[Date "2022.12.14"]
[WhiteClock "0:00:04"]
[BlackClock "0:02:23"]

1. e4 {[%clk 0:02:14]}  e6 {[%clk 0:02:58]} 2. d4 {[%clk 0:02:12]}  d5 {[%clk 0:02:54]} 3. exd5 {[%clk 0:02:11]}  exd5 {[%clk 0:02:55]} 4. c4 {[%clk 0:02:09]}  Nf6 {[%clk 0:02:55]} 5. Nc3 {[%clk 0:02:06]}  Bb4 {[%clk 0:02:53]} 6. Nf3 {[%clk 0:02:03]}  O-O {[%clk 0:02:53]} 7. Bd3 {[%clk 0:02:01]}  dxc4 {[%clk 0:02:49]} 8. Bxc4 {[%clk 0:01:58]}  Bg4 {[%clk 0:02:40]} 9. Be3 {[%clk 0:01:54]}  Nc6 {[%clk 0:02:38]} 10. O-O {[%clk 0:01:53]}  Rb8 {[%clk 0:02:35]} 11. a3 {[%clk 0:01:47]}  Ba5 {[%clk 0:02:32]} 12. b4 {[%clk 0:01:35]}  Bb6 {[%clk 0:02:28]} 13. d5 {[%clk 0:01:35]}  Bxe3 {[%clk 0:02:26]} 14. fxe3 {[%clk 0:01:30]}  Qe7 {[%clk 0:02:23]} 15. dxc6 {[%clk 0:00:13]}  Qxe3+ {[%clk 0:02:22]} 16. Kh1 {[%clk 0:00:11]}  Qxc3 {[%clk 0:02:23]} 17. Rc1 {[%clk 0:00:07]}  Qxa3 {[%clk 0:02:23]} 18. cxb7 {[%clk 0:00:04]}  Qxb4 {[%clk 0:02:23]} 0-1


[Site "https://www.chess.com"]

[Event "Titled Tuesday Blitz December 13 Early 2022"]
[White "Goryachkina, Aleksandra"]
[Black "Kulkarni, Vikramaditya"]
[WhiteFideId "4147103"]
[BlackFideId "5009847"]
[WhiteElo "2484"]
[BlackElo "2273"]
[Result "1-0"]
[Round "01"]
[TimeControl "180+1"]
[Date "2022.12.14"]
[WhiteClock "0:00:04"]
[BlackClock "0:00:11"]

1. e4 {[%clk 0:02:58]}  e6 {[%clk 0:02:59]} 2. d4 {[%clk 0:02:58]}  d5 {[%clk 0:02:59]} 3. Nc3 {[%clk 0:02:58]}  Nf6 {[%clk 0:02:58]} 4. Bg5 {[%clk 0:02:55]}  Be7 {[%clk 0:02:54]} 5. e5 {[%clk 0:02:55]}  Ng8 {[%clk 0:02:54]} 6. h4 {[%clk 0:02:45]}  h6 {[%clk 0:02:52]} 7. Bxe7 {[%clk 0:02:41]}  Nxe7 {[%clk 0:02:52]} 8. Nce2 {[%clk 0:02:37]}  b6 {[%clk 0:02:50]} 9. Ng3 {[%clk 0:02:34]}  Ba6 {[%clk 0:02:45]} 10. Bxa6 {[%clk 0:02:32]}  Nxa6 {[%clk 0:02:45]} 11. Qg4 {[%clk 0:02:29]}  O-O {[%clk 0:02:38]} 12. N1e2 {[%clk 0:02:26]}  Nb4 {[%clk 0:02:28]} 13. O-O {[%clk 0:02:16]}  Nxc2 {[%clk 0:02:25]} 14. Rac1 {[%clk 0:02:15]}  Nb4 {[%clk 0:02:25]} 15. Nh5 {[%clk 0:02:14]}  Nf5 {[%clk 0:02:02]} 16. a3 {[%clk 0:01:34]}  Na6 {[%clk 0:01:44]} 17. g3 {[%clk 0:01:24]}  c5 {[%clk 0:01:38]} 18. Nef4 {[%clk 0:01:21]}  Kh7 {[%clk 0:01:31]} 19. Qe2 {[%clk 0:01:00]}  c4 {[%clk 0:01:26]} 20. Rfd1 {[%clk 0:00:55]}  b5 {[%clk 0:01:19]} 21. Qc2 {[%clk 0:00:48]}  Kh8 {[%clk 0:01:13]} 22. Qd2 {[%clk 0:00:40]}  Rb8 {[%clk 0:00:54]} 23. Rc3 {[%clk 0:00:23]}  b4 {[%clk 0:00:51]} 24. axb4 {[%clk 0:00:22]}  Nxb4 {[%clk 0:00:51]} 25. g4 {[%clk 0:00:20]}  Nxh4 {[%clk 0:00:43]} 26. Nxg7 {[%clk 0:00:20]}  Nd3 {[%clk 0:00:40]} 27. Qe3 {[%clk 0:00:12]}  Qg5 {[%clk 0:00:35]} 28. Ngh5 {[%clk 0:00:09]}  Qxg4+ {[%clk 0:00:34]} 29. Kh2 {[%clk 0:00:09]}  Rg8 {[%clk 0:00:19]} 30. Rcxd3 {[%clk 0:00:06]}  cxd3 {[%clk 0:00:19]} 31. Ng3 {[%clk 0:00:06]}  Qxd1 {[%clk 0:00:13]} 32. Nxd3 {[%clk 0:00:05]}  Qg4 {[%clk 0:00:11]} 33. Qxh6# {[%clk 0:00:04]} 1-0


[Site "https://www.chess.com"]

[Event "Titled Tuesday Blitz December 13 Early 2022"]
[White "Harsh Suresh"]
[Black "Gonzalez, Francisco Silva"]
[WhiteFideId "45018464"]
[BlackFideId "1512285"]
[WhiteElo "2227"]
[BlackElo "2220"]
[Result "1-0"]
[Round "01"]
[TimeControl "180+1"]
[Date "2022.12.14"]
[WhiteClock "0:00:18"]
[BlackClock "0:00:27"]

1. Nf3 {[%clk 0:02:59]}  d5 {[%clk 0:02:58]} 2. c4 {[%clk 0:02:58]}  e6 {[%clk 0:02:57]} 3. b3 {[%clk 0:02:57]}  c6 {[%clk 0:02:56]} 4. Bb2 {[%clk 0:02:57]}  Nd7 {[%clk 0:02:54]} 5. g3 {[%clk 0:02:57]}  Ngf6 {[%clk 0:02:54]} 6. Bg2 {[%clk 0:02:57]}  Bd6 {[%clk 0:02:52]} 7. O-O {[%clk 0:02:57]}  O-O {[%clk 0:02:52]} 8. d3 {[%clk 0:02:57]}  dxc4 {[%clk 0:02:52]} 9. dxc4 {[%clk 0:02:57]}  Qc7 {[%clk 0:02:51]} 10. Nc3 {[%clk 0:02:54]}  Ne5 {[%clk 0:02:49]} 11. Qc2 {[%clk 0:02:52]}  Nxf3+ {[%clk 0:02:47]} 12. Bxf3 {[%clk 0:02:52]}  a6 {[%clk 0:02:45]} 13. Rfd1 {[%clk 0:02:52]}  c5 {[%clk 0:02:42]} 14. Ne4 {[%clk 0:02:36]}  Nxe4 {[%clk 0:02:40]} 15. Bxe4 {[%clk 0:02:37]}  f5 {[%clk 0:02:37]} 16. Qc3 {[%clk 0:02:30]}  Bxg3 {[%clk 0:02:31]} 17. Qxg3 {[%clk 0:01:57]}  Qxg3+ {[%clk 0:02:30]} 18. hxg3 {[%clk 0:01:58]}  fxe4 {[%clk 0:02:30]} 19. Rd6 {[%clk 0:01:59]}  Kf7 {[%clk 0:02:05]} 20. Ba3 {[%clk 0:01:56]}  b5 {[%clk 0:01:59]} 21. Bxc5 {[%clk 0:01:56]}  bxc4 {[%clk 0:01:58]} 22. bxc4 {[%clk 0:01:57]}  a5 {[%clk 0:01:56]} 23. Rd4 {[%clk 0:01:52]}  Re8 {[%clk 0:01:56]} 24. Rxe4 {[%clk 0:01:52]}  Bb7 {[%clk 0:01:56]} 25. Rd4 {[%clk 0:01:51]}  Red8 {[%clk 0:01:55]} 26. Rad1 {[%clk 0:01:52]}  Rxd4 {[%clk 0:01:55]} 27. Rxd4 {[%clk 0:01:53]}  Bc6 {[%clk 0:01:54]} 28. Rf4+ {[%clk 0:01:48]}  Kg8 {[%clk 0:01:52]} 29. Bd6 {[%clk 0:01:47]}  a4 {[%clk 0:01:51]} 30. c5 {[%clk 0:01:46]}  h6 {[%clk 0:01:46]} 31. a3 {[%clk 0:01:43]}  Rd8 {[%clk 0:01:41]} 32. f3 {[%clk 0:01:39]}  Ra8 {[%clk 0:01:35]} 33. Rb4 {[%clk 0:01:36]}  Kf7 {[%clk 0:01:32]} 34. Rb6 {[%clk 0:01:35]}  Rc8 {[%clk 0:01:30]} 35. Ra6 {[%clk 0:01:35]}  Kf6 {[%clk 0:01:29]} 36. Ra7 {[%clk 0:01:33]}  e5 {[%clk 0:01:29]} 37. e4 {[%clk 0:01:29]}  h5 {[%clk 0:01:27]} 38. Kh2 {[%clk 0:01:28]}  g5 {[%clk 0:01:23]} 39. Kg2 {[%clk 0:01:28]}  g4 {[%clk 0:01:22]} 40. Kf2 {[%clk 0:01:24]}  Re8 {[%clk 0:01:11]} 41. Rc7 {[%clk 0:01:11]}  Bb5 {[%clk 0:01:09]} 42. Rh7 {[%clk 0:01:06]}  Kg6 {[%clk 0:01:09]} 43. Rb7 {[%clk 0:01:06]}  Bc4 {[%clk 0:01:03]} 44. fxg4 {[%clk 0:00:50]}  hxg4 {[%clk 0:01:01]} 45. c6 {[%clk 0:00:51]}  Re6 {[%clk 0:01:00]} 46. c7 {[%clk 0:00:44]}  Ba6 {[%clk 0:00:57]} 47. Rb6 {[%clk 0:00:38]}  Bc8 {[%clk 0:00:57]} 48. Rb8 {[%clk 0:00:31]}  Ba6 {[%clk 0:00:56]} 49. Rd8 {[%clk 0:00:29]}  Kf6 {[%clk 0:00:54]} 50. Ke1 {[%clk 0:00:27]}  Kf7 {[%clk 0:00:52]} 51. Kd2 {[%clk 0:00:24]}  Bb7 {[%clk 0:00:47]} 52. Kc3 {[%clk 0:00:21]}  Kf6 {[%clk 0:00:46]} 53. Kb4 {[%clk 0:00:19]}  Kf7 {[%clk 0:00:41]} 54. Kc5 {[%clk 0:00:19]}  Kf6 {[%clk 0:00:40]} 55. Kb6 {[%clk 0:00:19]}  Bxe4 {[%clk 0:00:38]} 56. c8=Q {[%clk 0:00:19]}  Re7 {[%clk 0:00:31]} 57. Bxe7+ {[%clk 0:00:19]}  Kxe7 {[%clk 0:00:30]} 58. Qd7+ {[%clk 0:00:19]}  Kf6 {[%clk 0:00:30]} 59. Rf8+ {[%clk 0:00:18]}  Kg5 {[%clk 0:00:27]} 60. Qg7+ {[%clk 0:00:18]}  Bg6 {[%clk 0:00:27]} 61. Qf6+ {[%clk 0:00:18]} 1-0


[Site "https://www.chess.com"]

[Event "Titled Tuesday Blitz December 13 Early 2022"]
[White "Hartikainen, Jarmo"]
[Black "Omelja, Artem"]
[WhiteFideId "503134"]
[BlackFideId "14119846"]
[WhiteElo "2197"]
[BlackElo "2404"]
[Result "0-1"]
[Round "01"]
[TimeControl "180+1"]
[Date "2022.12.14"]
[WhiteClock "0:01:21"]
[BlackClock "0:02:36"]

1. e4 {[%clk 0:02:57]}  c5 {[%clk 0:02:59]} 2. c3 {[%clk 0:02:56]}  d5 {[%clk 0:02:59]} 3. exd5 {[%clk 0:02:56]}  Qxd5 {[%clk 0:03:00]} 4. d4 {[%clk 0:02:56]}  Nf6 {[%clk 0:03:00]} 5. Nf3 {[%clk 0:02:56]}  Bg4 {[%clk 0:03:00]} 6. Be2 {[%clk 0:02:56]}  e6 {[%clk 0:02:58]} 7. Na3 {[%clk 0:02:53]}  Nc6 {[%clk 0:02:58]} 8. O-O {[%clk 0:02:50]}  Be7 {[%clk 0:02:57]} 9. dxc5 {[%clk 0:02:46]}  Bxc5 {[%clk 0:02:56]} 10. Nb5 {[%clk 0:02:42]}  Rc8 {[%clk 0:02:55]} 11. b4 {[%clk 0:02:28]}  Be7 {[%clk 0:02:51]} 12. Bf4 {[%clk 0:02:18]}  O-O {[%clk 0:02:49]} 13. Nd6 {[%clk 0:02:01]}  Bxd6 {[%clk 0:02:47]} 14. Bxd6 {[%clk 0:02:00]}  Rfd8 {[%clk 0:02:46]} 15. Bf4 {[%clk 0:01:44]}  Qe4 {[%clk 0:02:37]} 16. Qc1 {[%clk 0:01:21]}  Qxe2 {[%clk 0:02:36]} 0-1


[Site "https://www.chess.com"]

[Event "Titled Tuesday Blitz December 13 Early 2022"]
[White "Hoffmann, Asa"]
[Black "Dilanyan, Grigor"]
[WhiteFideId "2001470"]
[BlackFideId "13303570"]
[WhiteElo "2117"]
[BlackElo "2229"]
[Result "0-1"]
[Round "01"]
[TimeControl "180+1"]
[Date "2022.12.14"]
[WhiteClock "0:00:11"]
[BlackClock "0:01:57"]

1. d4 {[%clk 0:02:58]}  Nf6 {[%clk 0:02:59]} 2. Bg5 {[%clk 0:02:56]}  Ne4 {[%clk 0:02:58]} 3. Bf4 {[%clk 0:02:55]}  c5 {[%clk 0:02:58]} 4. f3 {[%clk 0:02:54]}  Nf6 {[%clk 0:02:58]} 5. dxc5 {[%clk 0:02:50]}  Qa5+ {[%clk 0:02:58]} 6. Nc3 {[%clk 0:02:47]}  Qxc5 {[%clk 0:02:58]} 7. e4 {[%clk 0:02:46]}  Nc6 {[%clk 0:02:58]} 8. Qd2 {[%clk 0:02:46]}  d6 {[%clk 0:02:55]} 9. Nb5 {[%clk 0:02:44]}  Qb6 {[%clk 0:02:52]} 10. Be3 {[%clk 0:02:42]}  Qd8 {[%clk 0:02:52]} 11. c4 {[%clk 0:02:42]}  a6 {[%clk 0:02:52]} 12. Nc3 {[%clk 0:02:41]}  g6 {[%clk 0:02:52]} 13. O-O-O {[%clk 0:02:36]}  Bg7 {[%clk 0:02:53]} 14. Nge2 {[%clk 0:02:33]}  O-O {[%clk 0:02:53]} 15. Bh6 {[%clk 0:02:33]}  Be6 {[%clk 0:02:51]} 16. Nd4 {[%clk 0:02:31]}  Nxd4 {[%clk 0:02:48]} 17. Bxg7 {[%clk 0:02:30]}  Nxf3 {[%clk 0:02:46]} 18. gxf3 {[%clk 0:02:14]}  Kxg7 {[%clk 0:02:46]} 19. h4 {[%clk 0:02:14]}  h5 {[%clk 0:02:45]} 20. Rg1 {[%clk 0:02:12]}  Rc8 {[%clk 0:02:45]} 21. Qd4 {[%clk 0:02:09]}  Qa5 {[%clk 0:02:42]} 22. f4 {[%clk 0:02:07]}  b5 {[%clk 0:02:40]} 23. e5 {[%clk 0:01:54]}  dxe5 {[%clk 0:02:38]} 24. fxe5 {[%clk 0:01:53]}  Ng4 {[%clk 0:02:38]} 25. Be2 {[%clk 0:01:44]}  bxc4 {[%clk 0:02:34]} 26. Bxg4 {[%clk 0:01:41]}  Bxg4 {[%clk 0:02:34]} 27. e6+ {[%clk 0:01:21]}  f6 {[%clk 0:02:33]} 28. Rxg4 {[%clk 0:01:14]}  hxg4 {[%clk 0:02:32]} 29. Qxg4 {[%clk 0:01:14]}  Qf5 {[%clk 0:02:30]} 30. Qxf5 {[%clk 0:01:01]}  gxf5 {[%clk 0:02:31]} 31. Nd5 {[%clk 0:00:58]}  Rcd8 {[%clk 0:02:09]} 32. Rg1+ {[%clk 0:00:56]}  Kh7 {[%clk 0:02:09]} 33. Nxe7 {[%clk 0:00:55]}  f4 {[%clk 0:02:09]} 34. Nf5 {[%clk 0:00:54]}  Rd5 {[%clk 0:02:06]} 35. Ng7 {[%clk 0:00:25]}  Re5 {[%clk 0:02:00]} 36. h5 {[%clk 0:00:19]}  f3 {[%clk 0:01:57]} 37. h6 {[%clk 0:00:17]}  f2 {[%clk 0:01:57]} 38. Rf1 {[%clk 0:00:11]}  Re1+ {[%clk 0:01:57]} 0-1


[Site "https://www.chess.com"]

[Event "Titled Tuesday Blitz December 13 Early 2022"]
[White "Itkis, Boris"]
[Black "Vlassov, Nikolai"]
[WhiteFideId "1209167"]
[BlackFideId "4103360"]
[WhiteElo "2216"]
[BlackElo "2324"]
[Result "1-0"]
[Round "01"]
[TimeControl "180+1"]
[Date "2022.12.14"]
[WhiteClock "0:00:22"]
[BlackClock "0:00:28"]

1. c4 {[%clk 0:03:00]}  e5 {[%clk 0:02:54]} 2. Nf3 {[%clk 0:03:00]}  Nc6 {[%clk 0:02:51]} 3. Nc3 {[%clk 0:03:00]}  Nf6 {[%clk 0:02:50]} 4. e4 {[%clk 0:03:00]}  Bb4 {[%clk 0:02:49]} 5. d3 {[%clk 0:02:59]}  d6 {[%clk 0:02:48]} 6. a3 {[%clk 0:02:59]}  Bxc3+ {[%clk 0:02:47]} 7. bxc3 {[%clk 0:03:00]}  h6 {[%clk 0:02:46]} 8. h3 {[%clk 0:02:56]}  O-O {[%clk 0:02:46]} 9. Be2 {[%clk 0:02:56]}  Nh7 {[%clk 0:02:42]} 10. g4 {[%clk 0:02:44]}  Ne7 {[%clk 0:02:31]} 11. g5 {[%clk 0:02:28]}  hxg5 {[%clk 0:02:21]} 12. Nxg5 {[%clk 0:02:28]}  Ng6 {[%clk 0:02:18]} 13. Nxh7 {[%clk 0:02:22]}  Kxh7 {[%clk 0:02:18]} 14. Bg4 {[%clk 0:02:16]}  Qh4 {[%clk 0:02:07]} 15. Qf3 {[%clk 0:01:22]}  Bxg4 {[%clk 0:01:53]} 16. hxg4 {[%clk 0:01:20]}  Kg8 {[%clk 0:01:52]} 17. Rxh4 {[%clk 0:01:19]}  Nxh4 {[%clk 0:01:53]} 18. Qh3 {[%clk 0:01:19]}  Ng6 {[%clk 0:01:53]} 19. Be3 {[%clk 0:01:18]}  f6 {[%clk 0:01:53]} 20. Kd2 {[%clk 0:01:14]}  Kf7 {[%clk 0:01:53]} 21. g5 {[%clk 0:01:13]}  Rad8 {[%clk 0:01:46]} 22. gxf6 {[%clk 0:01:13]}  Rh8 {[%clk 0:01:45]} 23. Qg4 {[%clk 0:01:00]}  gxf6 {[%clk 0:01:45]} 24. Rg1 {[%clk 0:01:00]}  Rhg8 {[%clk 0:01:43]} 25. Qh5 {[%clk 0:00:59]}  Rg7 {[%clk 0:01:41]} 26. Qf5 {[%clk 0:00:50]}  Nf8 {[%clk 0:01:33]} 27. Rxg7+ {[%clk 0:00:49]}  Kxg7 {[%clk 0:01:33]} 28. f4 {[%clk 0:00:47]}  Ng6 {[%clk 0:01:26]} 29. fxe5 {[%clk 0:00:47]}  dxe5 {[%clk 0:01:21]} 30. a4 {[%clk 0:00:41]}  b6 {[%clk 0:01:20]} 31. a5 {[%clk 0:00:41]}  bxa5 {[%clk 0:01:17]} 32. Bxa7 {[%clk 0:00:40]}  a4 {[%clk 0:01:17]} 33. Bc5 {[%clk 0:00:40]}  Nf4 {[%clk 0:01:09]} 34. d4 {[%clk 0:00:41]}  Ng6 {[%clk 0:01:03]} 35. Kc2 {[%clk 0:00:39]}  Kf7 {[%clk 0:00:48]} 36. d5 {[%clk 0:00:30]}  Kg7 {[%clk 0:00:43]} 37. Qe6 {[%clk 0:00:27]}  Ra8 {[%clk 0:00:33]} 38. Be7 {[%clk 0:00:23]}  Nxe7 {[%clk 0:00:31]} 39. Qxe7+ {[%clk 0:00:24]}  Kg6 {[%clk 0:00:31]} 40. Qxc7 {[%clk 0:00:22]}  a3 {[%clk 0:00:32]} 41. Kb1 {[%clk 0:00:23]}  a2+ {[%clk 0:00:29]} 42. Ka1 {[%clk 0:00:23]}  Ra3 {[%clk 0:00:28]} 43. d6 {[%clk 0:00:22]} 1-0


[Site "https://www.chess.com"]

[Event "Titled Tuesday Blitz December 13 Early 2022"]
[White "Jaracz, Pawel"]
[Black "Guliev, Logman"]
[WhiteFideId "1102222"]
[BlackFideId "13400061"]
[WhiteElo "2460"]
[BlackElo "2161"]
[Result "0-1"]
[Round "01"]
[TimeControl "180+1"]
[Date "2022.12.14"]
[WhiteClock "0:01:00"]
[BlackClock "0:00:18"]

1. e4 {[%clk 0:02:55]}  c5 {[%clk 0:02:59]} 2. Nf3 {[%clk 0:02:54]}  d6 {[%clk 0:02:57]} 3. d4 {[%clk 0:02:53]}  cxd4 {[%clk 0:02:57]} 4. Nxd4 {[%clk 0:02:53]}  Nf6 {[%clk 0:02:56]} 5. Nc3 {[%clk 0:02:53]}  Nc6 {[%clk 0:02:56]} 6. Bc4 {[%clk 0:02:52]}  e6 {[%clk 0:02:56]} 7. Be3 {[%clk 0:02:51]}  Be7 {[%clk 0:02:53]} 8. Bb3 {[%clk 0:02:48]}  a6 {[%clk 0:02:53]} 9. Qe2 {[%clk 0:02:45]}  Na5 {[%clk 0:02:52]} 10. g4 {[%clk 0:02:41]}  Nxb3 {[%clk 0:02:51]} 11. cxb3 {[%clk 0:02:38]}  b5 {[%clk 0:02:46]} 12. g5 {[%clk 0:02:37]}  Nd7 {[%clk 0:02:44]} 13. Rg1 {[%clk 0:02:34]}  Bb7 {[%clk 0:02:43]} 14. b4 {[%clk 0:02:19]}  O-O {[%clk 0:02:21]} 15. Rg3 {[%clk 0:02:17]}  a5 {[%clk 0:02:19]} 16. Qh5 {[%clk 0:02:12]}  g6 {[%clk 0:02:18]} 17. Qh6 {[%clk 0:02:09]}  Re8 {[%clk 0:02:18]} 18. Rh3 {[%clk 0:02:07]}  Nf8 {[%clk 0:02:19]} 19. bxa5 {[%clk 0:01:49]}  b4 {[%clk 0:02:16]} 20. Nce2 {[%clk 0:01:49]}  Bxe4 {[%clk 0:02:00]} 21. Ng3 {[%clk 0:01:39]}  Bd5 {[%clk 0:01:28]} 22. Nge2 {[%clk 0:01:30]}  e5 {[%clk 0:01:05]} 23. Nb3 {[%clk 0:01:25]}  Be6 {[%clk 0:00:57]} 24. Bb6 {[%clk 0:01:25]}  Bxg5 {[%clk 0:00:48]} 25. Bxd8 {[%clk 0:01:23]}  Bxh6 {[%clk 0:00:48]} 26. Rxh6 {[%clk 0:01:23]}  Rexd8 {[%clk 0:00:48]} 27. Rh4 {[%clk 0:01:21]}  Rdb8 {[%clk 0:00:41]} 28. f4 {[%clk 0:01:18]}  Rb5 {[%clk 0:00:35]} 29. fxe5 {[%clk 0:01:17]}  dxe5 {[%clk 0:00:35]} 30. Rd1 {[%clk 0:01:09]}  Bxb3 {[%clk 0:00:32]} 31. axb3 {[%clk 0:01:10]}  Raxa5 {[%clk 0:00:30]} 32. Ng3 {[%clk 0:01:06]}  Ra8 {[%clk 0:00:26]} 33. Rc4 {[%clk 0:01:05]}  Ne6 {[%clk 0:00:24]} 34. Ne4 {[%clk 0:01:04]}  Kg7 {[%clk 0:00:24]} 35. Rd7 {[%clk 0:01:03]}  Rba5 {[%clk 0:00:18]} 36. Nd6 {[%clk 0:01:02]}  R5a7 {[%clk 0:00:18]} 37. Re7 {[%clk 0:01:00]}  Rxe7 {[%clk 0:00:18]} 0-1


[Site "https://www.chess.com"]